{"text_format":"1","workbook":"xlsx","n_sheets":3,"sheets":["Feuil1","Feuil2","Feuil3"],"not_rendered":{"charts":0,"images":0,"macros":1,"external_links":0,"defined_names":0,"comments":0,"pivot_tables":0},"unopened":[],"bounds":{"document_bytes":16777216,"sheet_cells":100000,"rows_first":2000,"rows_last":500,"rows_between":2000,"halvings":0,"cell_chars":16384,"cell_head_chars":4096},"cells_cut":0,"cells_raw":0,"read":"whole","date_system":"1900"}

{"sheet":"Feuil1","index":0,"n_rows":15,"n_cols":23,"rows_kept":15,"cut":false,"hidden":false,"merged":[[3,22,3,23],[4,1,4,5],[2,1,2,5],[4,11,11,11],[4,10,11,10],[4,18,11,18],[5,1,5,5],[4,13,11,13],[4,14,11,14],[4,15,11,15],[4,17,11,17],[4,12,11,12],[1,10,1,20],[4,20,11,20],[4,16,11,16],[4,19,11,19]]}
[]
[null,null,null,null,null,null,null,null,null,null,"الشكل رقم 2"]
[null,"الشكل رقم 1",null,null,null,null,null,null,null,null,{"$f":"IF(COLUMN(A$1)<=SUM($B$8:$F$8),INDEX($A$7:$F$7,MATCH(COLUMN(A$1)-1,$A$9:$F$9,1)),\"\")","v":"العسل"},{"$f":"IF(COLUMN(B$1)<=SUM($B$8:$F$8),INDEX($A$7:$F$7,MATCH(COLUMN(B$1)-1,$A$9:$F$9,1)),\"\")","v":"العسل"},"العسل","حبوب اللقاح","الحضنة","المضافة","","","","",""]
[null,null,null,null,null,null,null,null,null,null,1,2,3,4,5,6,7,8,9,10,11,null,"جدول الألوان"]
[null,"مثال رقم 1",null,null,null,null,null,null,null,null,{"$f":"K3","v":"العسل"},{"$f":"L3","v":"العسل"},{"$f":"M3","v":"العسل"},"حبوب اللقاح","الحضنة","المضافة","","","","","",null,"الحضنة"]
[null,{"$f":"\"عدد إطارات         \"&SUM(B8:F8)","v":"عدد إطارات         6"},null,null,null,null,null,null,null,null,null,null,null,null,null,null,null,null,null,null,null,null,"العسل"]
[null,"العسل","حبوب اللقاح","الحضنة","المضافة",null,null,null,null,null,null,null,null,null,null,null,null,null,null,null,null,null,"حبوب اللقاح"]
[null,3,1,1,1,null,null,null,null,null,null,null,null,null,null,null,null,null,null,null,null,null,"المضافة"]
[null,{"$f":"IF(OR(B$8=0,B$8=\"\"),\"\",SUM($A$8:A$8))","v":0},{"$f":"IF(OR(C$8=0,C$8=\"\"),\"\",SUM($A$8:B$8))","v":3},{"$f":"IF(OR(D$8=0,D$8=\"\"),\"\",SUM($A$8:C$8))","v":4},{"$f":"IF(OR(E$8=0,E$8=\"\"),\"\",SUM($A$8:D$8))","v":5},{"$f":"IF(OR(F$8=0,F$8=\"\"),\"\",SUM($A$8:E$8))","v":""}]
[]
[]
[]
[]
[]
[null,null,null,null,"صف مساعد بمعادلات",null,null,null,null,null,null,null,null,null,null,null,null,null,null,null,null,null,"الألوان تتغير هنا تلقائيا حسب الألوان المختارة في \"جدول الألوان\""]

{"sheet":"Feuil2","index":1,"n_rows":0,"n_cols":0,"rows_kept":0,"cut":false,"hidden":false,"merged":[]}

{"sheet":"Feuil3","index":2,"n_rows":0,"n_cols":0,"rows_kept":0,"cut":false,"hidden":false,"merged":[]}